fUST/lending_fUST_20250901
["ID","MTS","AMOUNT","RATE_DAILY","PERIOD"]
[382537138,1756659414381,1085.82,0.0001725,2]
[382537139,1756659414608,480.0,0.0001725,2]
[382537141,1756659419118,891.64,0.0001725,2]
[382537142,1756659419990,480.0,0.0001725,2]
[382537143,1756659421636,2061.88033819,0.0001725,2]
[382537144,1756659422154,807.76,0.0001725,2]
[382537145,1756659422424,300.0,0.0001725,2]
[382537146,1756659423455,512.98938755,0.0001725,2]
[382537147,1756659423479,305.10061245,0.0001725,2]
[382537148,1756659423709,933.78,0.0001725,2]
[382537149,1756659426426,480.0,0.0001725,2]
[382537150,1756659427985,1861.68,0.0001725,2]
[382537151,1756659428084,480.0,0.0001725,2]
[382537152,1756659428376,492.41,0.0001725,2]
[382537153,1756659431622,480.0,0.0001725,2]
[382537154,1756659433932,987.75,0.0001725,2]
[382537158,1756659437017,3979.28938755,0.0001725,2]
[382537159,1756659437042,1020.71061245,0.0001725,2]
[382537160,1756659438920,480.0,0.0001725,2]
[382537161,1756659442034,480.0,0.0001725,2]
[382537162,1756659443720,480.0,0.0001725,2]
[382537163,1756659447303,480.0,0.0001725,2]
[382537164,1756659447827,692.72,0.0001725,2]
[382537165,1756659448155,885.57,0.0001725,2]
[382537166,1756659448279,480.0,0.0001725,2]
[382537167,1756659448689,480.0,0.0001725,2]
[382537169,1756659449839,1409.0,0.00017068,2]
[382537170,1756659449866,480.0,0.0001725,2]
[382537171,1756659451885,480.0,0.0001725,2]
[382537172,1756659452492,1148.35,0.0001725,2]
[382537173,1756659457042,616.64,0.0001725,2]
[382537175,1756659459178,387.01938755,0.0001725,2]
[382537176,1756659459201,149.62061245,0.0001725,2]
[382537177,1756659459599,5000.0,0.0001725,2]
[382537178,1756659459957,990.4,0.0001725,2]
[382537179,1756659460477,1738.7,0.0001725,2]
[382537180,1756659460649,480.0,0.0001725,2]
[382537181,1756659461467,480.0,0.0001725,2]
[382537182,1756659462901,1161.28938755,0.0001725,2]
[382537183,1756659462922,18.28061245,0.0001725,2]
[382537184,1756659464750,2268.25389466,0.00016733,2]
[382537185,1756659468287,721.37,0.0001725,2]
[382537186,1756659469154,956.3,0.0001725,2]
[382537187,1756659469474,480.0,0.0001725,2]
[382537188,1756659470460,480.0,0.0001725,2]
[382537190,1756659472928,526.22,0.0001725,2]
[382537191,1756659473734,480.0,0.0001725,2]
[382537192,1756659473962,586.43,0.0001725,2]
[382537193,1756659477612,745.81,0.0001725,2]
[382537194,1756659479265,607.19,0.0001725,2]
[382537195,1756659481153,2130.15549289,0.0001725,2]
[382537196,1756659481177,1394.13450711,0.0001725,2]
[382537197,1756659481243,480.0,0.0001725,2]
[382537198,1756659482401,480.0,0.0001725,2]
[382537199,1756659483079,300.0,0.0001725,2]
[382537200,1756659483784,1935.05,0.0001725,2]
[382537201,1756659484056,5000.0,0.0001725,2]
[382537202,1756659484130,410.82549289,0.0001725,2]
[382537203,1756659484154,69.17450711,0.0001725,2]
[382537204,1756659484226,480.0,0.0001725,2]
[382537205,1756659485375,5839.43,0.0001725,2]
[382537206,1756659485807,985.35,0.0001725,2]
[382537207,1756659485985,600.74,0.0001725,2]
[382537208,1756659486141,1120.85,0.0001725,2]
[382537209,1756659488665,904.46549289,0.0001725,2]
[382537210,1756659488694,1163.87450711,0.0001725,2]
[382537211,1756659488742,480.0,0.0001725,2]
[382537212,1756659494703,1138.81,0.0001725,2]
[382537213,1756659496160,501.0,0.0001725,2]
[382537214,1756659497212,480.0,0.0001725,2]
[382537215,1756659499177,581.44,0.0001725,2]
[382537216,1756659499700,1649.58,0.0001725,2]
[382537217,1756659500826,480.0,0.0001725,2]
[382537218,1756659502728,480.0,0.0001725,2]
[382537219,1756659503365,480.0,0.0001725,2]
[382537220,1756659503650,480.0,0.0001725,2]
[382537221,1756659504069,480.0,0.0001725,2]
[382537222,1756659504335,180.70105,8.185e-05,2]
[382537223,1756659504549,180.70105,0.00010913,2]
[382537224,1756659504773,180.70105,0.00013641,2]
[382537225,1756659504974,180.70105,0.00016369,2]
[382537227,1756659506722,4646.1858,0.0001725,2]
[382537228,1756659506746,353.8142,0.0001725,2]
[382537229,1756659508622,480.0,0.0001725,2]
[382537230,1756659510863,480.0,0.0001725,2]
[382537231,1756659512934,1202.28,0.0001725,2]
[382537232,1756659513433,877.56,0.0001725,2]
[382537233,1756659513547,480.0,0.0001725,2]
[382537234,1756659513910,507.51,0.0001725,2]
[382537235,1756659516990,178.86528761,0.00017151,2]
[382537239,1756659521717,512.05,0.0001725,2]
[382537240,1756659521869,480.0,0.0001725,2]
[382537241,1756659522366,480.0,0.0001725,2]
[382537242,1756659522738,751.83,0.0001725,2]
[382537243,1756659523754,480.0,0.0001725,2]
[382537244,1756659523901,480.0,0.0001725,2]
[382537245,1756659523991,597.01,0.0001725,2]
[382537246,1756659524584,874.36,0.0001725,2]
[382537247,1756659525166,480.0,0.0001725,2]
[382537248,1756659529165,1138.54471239,0.0001725,2]
[382537249,1756659529190,3861.45528761,0.0001725,2]
[382537250,1756659529707,1276.86,0.0001725,2]
[382537251,1756659533438,480.0,0.0001725,2]
[382537252,1756659533819,531.63,0.0001725,2]
[382537253,1756659535013,964.42,0.0001725,2]
[382537254,1756659536012,666.52,0.0001725,2]
[382537255,1756659536796,480.0,0.0001725,2]
[382537256,1756659539146,480.0,0.0001725,2]
[382537257,1756659539819,1206.86,0.0001725,2]
[382537258,1756659542439,52.26471239,0.0001725,2]
[382537259,1756659542466,247.73528761,0.0001725,2]
[382537260,1756659543359,619.85714217,0.0001725,2]
[382537261,1756659543424,598.84,0.0001725,2]
[382537262,1756659544839,480.0,0.0001725,2]
[382537263,1756659545254,480.0,0.0001725,2]
[382537264,1756659546983,991.87,0.0001725,2]
[382537265,1756659548154,480.0,0.0001725,2]
[382537266,1756659548569,1301.36,0.0001725,2]
[382537267,1756659548738,526.35,0.0001725,2]
[382537268,1756659549443,682.04,0.0001725,2]
[382537269,1756659551725,480.0,0.0001725,2]
[382537270,1756659552759,3111.95757022,0.0001725,2]
[382537271,1756659552786,1888.04242978,0.0001725,2]
[382537272,1756659553824,480.0,0.0001725,2]
[382537273,1756659556282,480.0,0.0001725,2]
[382537274,1756659556479,779.56,0.0001725,2]
[382537275,1756659560218,480.0,0.0001725,2]
[382537276,1756659561931,480.0,0.0001725,2]
[382537277,1756659563127,480.0,0.0001725,2]
[382537278,1756659564243,480.0,0.0001725,2]
[382537279,1756659564670,1083.36,0.0001725,2]
[382537280,1756659565716,3369.04757022,0.0001725,2]
[382537281,1756659565738,1081.01242978,0.0001725,2]
[382537282,1756659567830,480.0,0.0001725,2]
[382537283,1756659572010,4696.05,0.0001725,2]
[382537284,1756659572196,1302.28,0.0001725,2]
[382537285,1756659572384,1002.75,0.0001725,2]
[382537286,1756659573104,480.0,0.0001725,2]
[382537287,1756659575436,957.91757022,0.0001725,2]
[382537288,1756659575461,4042.08242978,0.0001725,2]
[382537289,1756659576285,480.0,0.0001725,2]
[382537290,1756659578466,539.71,0.0001725,2]
[382537291,1756659578793,1209.99,0.0001725,2]
[382537292,1756659579419,587.53,0.0001725,2]
[382537293,1756659583874,980.26,0.0001725,2]
[382537294,1756659584860,604.8,0.0001725,2]
[382537295,1756659585655,830.44,0.0001725,2]
[382537296,1756659587006,480.0,0.0001725,2]
[382537297,1756659587565,245.19757022,0.0001725,2]
[382537298,1756659587589,506.10242978,0.0001725,2]
[382537299,1756659588463,480.0,0.0001725,2]
[382537300,1756659589607,480.0,0.0001725,2]
[382537301,1756659590579,480.0,0.0001725,2]
[382537302,1756659593203,480.0,0.0001725,2]
[382537303,1756659593642,2357.83,0.0001725,2]
[382537304,1756659594563,480.0,0.0001725,2]
[382537305,1756659595767,480.0,0.0001725,2]
[382537306,1756659596789,614.94830813,0.0001725,2]
[382537307,1756659597163,480.0,0.0001725,2]
[382537308,1756659597930,480.0,0.0001725,2]
[382537309,1756659598751,5000.0,0.0001725,2]
[382537310,1756659600503,1285.46,0.0001725,2]
[382537311,1756659600823,480.0,0.0001725,2]
[382537312,1756659601729,480.0,0.0001725,2]
[382537313,1756659602532,300.0,0.0001725,2]
[382537314,1756659603962,480.0,0.0001725,2]
[382537315,1756659604527,587.63,0.0001725,2]
[382537316,1756659606857,480.0,0.0001725,2]
[382537317,1756659609107,151.15227594,0.00016517,2]
[382537318,1756659609548,816.43,0.0001725,2]
[382537319,1756659611827,480.0,0.0001725,2]
[382537320,1756659612038,8100.566515,0.00016369,2]
[382537321,1756659615774,521.04,0.0001725,2]
[382537322,1756659618706,480.0,0.0001725,2]
[382537323,1756659618809,418.403485,0.0001725,2]
[382537324,1756659618833,170.736515,0.0001725,2]
[382537325,1756659618974,480.0,0.0001725,2]
[382537326,1756659622431,5000.0,0.0001725,2]
[382537327,1756659623208,480.0,0.0001725,2]
[382537328,1756659626646,480.0,0.0001725,2]
[382537329,1756659628814,729.64,0.0001725,2]
[382537330,1756659632030,864.13,0.0001725,2]
[382537331,1756659633724,613.82,0.0001725,2]
[382537332,1756659633993,1181.683485,0.0001725,2]
[382537333,1756659634019,1162.966515,0.0001725,2]
[382537334,1756659636091,480.0,0.0001725,2]
[382537335,1756659637527,480.0,0.0001725,2]
[382537336,1756659637794,161.63095638,0.0001725,2]
[382537337,1756659638944,480.0,0.0001725,2]
[382537338,1756659641644,480.0,0.0001725,2]
[382537339,1756659641871,1054.83,0.0001725,2]
[382537340,1756659642319,480.0,0.0001725,2]
[382537341,1756659643179,480.0,0.0001725,2]
[382537342,1756659645287,5000.0,0.0001725,2]
[382537343,1756659646080,480.0,0.0001725,2]
[382537344,1756659648389,557.19,0.0001725,2]
[382537345,1756659649097,480.0,0.0001725,2]
[382537346,1756659649208,480.0,0.0001725,2]
[382537347,1756659649880,840.93,0.0001725,2]
[382537348,1756659650613,237.97448749,0.0001725,2]
[382537349,1756659650645,1067.38,0.0001725,2]
[382537350,1756659650885,480.0,0.0001725,2]
[382537351,1756659652969,585.91,0.0001725,2]
[382537352,1756659656237,480.0,0.0001725,2]
[382537353,1756659659383,1160.29,0.0001725,2]
[382537354,1756659664106,300.0,0.0001725,2]
[382537355,1756659666499,480.0,0.0001725,2]
[382537356,1756659668315,5000.0,0.0001725,2]
[382537357,1756659668988,623.79409868,0.0001725,2]
[382537358,1756659670381,480.0,0.0001725,2]
[382537359,1756659671253,410.01590132,0.0001725,2]
[382537360,1756659671277,69.98409868,0.0001725,2]
[382537361,1756659673245,480.0,0.0001725,2]
[382537362,1756659674089,480.0,0.0001725,2]
[382537363,1756659674790,816.36,0.0001725,2]
[382537364,1756659675109,942.7,0.0001725,2]
[382537365,1756659675502,917.59,0.0001725,2]
[382537366,1756659675615,480.0,0.0001725,2]
[382537367,1756659677069,1244.04,0.0001725,2]
[382537368,1756659678429,769.18,0.0001725,2]
[382537369,1756659684262,480.0,0.0001725,2]
[382537370,1756659686077,3319.74,0.0001725,2]
[382537371,1756659686579,0.41590132,0.0001725,2]
[382537372,1756659686606,479.58409868,0.0001725,2]
[382537373,1756659687010,480.0,0.0001725,2]
[382537374,1756659687378,480.0,0.0001725,2]
[382537375,1756659688714,608.42,0.0001725,2]
[382537376,1756659688920,480.0,0.0001725,2]
[382537377,1756659690817,5000.0,0.0001725,2]
[382537378,1756659691413,1880.82,0.0001725,2]
[382537379,1756659691654,279.29495814,0.0001725,2]
[382537380,1756659692066,311.89094318,0.0001725,2]
[382537381,1756659692090,654.23905682,0.0001725,2]
[382537382,1756659692475,480.0,0.0001725,2]
[382537383,1756659693480,480.0,0.0001725,2]
[382537384,1756659693975,480.0,0.0001725,2]
[382537385,1756659694169,480.0,0.0001725,2]
[382537386,1756659695113,1982.16,0.0001725,2]
[382537387,1756659695358,1084.36,0.0001725,2]
[382537388,1756659695736,562.16,0.0001725,2]
[382537389,1756659696553,480.0,0.0001725,2]
[382537390,1756659698667,3317.09094318,0.0001725,2]
[382537391,1756659698689,1682.90905682,0.0001725,2]
[382537392,1756659698774,1258.14,0.0001725,2]
[382537393,1756659701295,480.0,0.0001725,2]
[382537394,1756659703648,480.0,0.0001725,2]
[382537395,1756659705257,480.0,0.0001725,2]
[382537396,1756659707248,5000.0,0.0001725,2]
[382537397,1756659707310,480.0,0.0001725,2]
[382537398,1756659708608,138.96094318,0.0001725,2]
[382537399,1756659708632,1011.68905682,0.0001725,2]
[382537400,1756659708661,480.0,0.0001725,2]
[382537401,1756659711330,480.0,0.0001725,2]
[382537402,1756659712233,575.89,0.0001725,2]
[382537403,1756659713665,687.11,0.0001725,2]
[382537404,1756659714900,666.0,0.00016369,2]
[382537405,1756659715404,480.0,0.0001725,2]
[382537406,1756659715682,5000.0,0.0001725,2]
[382537407,1756659715863,619.32094318,0.0001725,2]
[382537408,1756659715887,332.87905682,0.0001725,2]
[382537409,1756659716100,638.64,0.0001725,2]
[382537410,1756659719275,480.0,0.0001725,2]
[382537411,1756659720491,792.27,0.0001725,2]
[382537412,1756659721372,480.0,0.0001725,2]
[382537413,1756659722543,300.0,0.0001725,2]
[382537414,1756659723247,738.02,0.0001725,2]
[382537415,1756659724144,480.0,0.0001725,2]
[382537416,1756659726275,480.0,0.0001725,2]
[382537417,1756659729172,439.57964417,0.0001725,2]
[382537418,1756659731651,480.0,0.0001725,2]
[382537419,1756659731709,671.8,0.0001725,2]
[382537420,1756659732346,480.0,0.0001725,2]
[382537421,1756659733164,525.86,0.0001725,2]
[382537422,1756659733274,480.0,0.0001725,2]
[382537423,1756659733305,1000.0,0.0001725,2]
[382537424,1756659734415,480.0,0.0001725,2]
[382537425,1756659734946,480.0,0.0001725,2]
[382537426,1756659735610,240.96129901,0.0001725,2]
[382537427,1756659735635,269.78975319,0.0001725,2]
[382537428,1756659737892,1208.65,0.0001725,2]
[382537429,1756659738109,480.0,0.0001725,2]
[382537430,1756659738447,5000.0,0.0001725,2]
[382537431,1756659738477,480.0,0.0001725,2]
[382537432,1756659740075,186.55579662,0.0001725,2]
[382537433,1756659740893,480.0,0.0001725,2]
[382537434,1756659740923,480.0,0.0001725,2]
[382537435,1756659740953,480.0,0.0001725,2]
[382537436,1756659741720,480.0,0.0001725,2]
[382537437,1756659744769,455.01445019,0.0001725,2]
[382537438,1756659744793,439.76554981,0.0001725,2]
[382537439,1756659745151,1001.64,0.0001725,2]
[382537440,1756659745385,480.0,0.0001725,2]
[382537441,1756659745972,506.37,0.0001725,2]
[382537442,1756659746851,519.98,0.0001725,2]
[382537443,1756659752629,699.84,0.0001725,2]
[382537444,1756659752942,1000.69,0.0001725,2]
[382537445,1756659753299,714.29,0.0001725,2]
[382537446,1756659754709,480.0,0.0001725,2]
[382537447,1756659754970,480.0,0.0001725,2]
[382537448,1756659756875,566.07,0.0001725,2]
[382537449,1756659757505,591.06,0.0001725,2]
[382537450,1756659757562,480.0,0.0001725,2]
[382537451,1756659757684,480.0,0.0001725,2]
[382537452,1756659761722,480.0,0.0001725,2]
[382537453,1756659762023,5000.0,0.0001725,2]
[382537454,1756659762369,480.0,0.0001725,2]
[382537455,1756659762453,581.93,0.0001725,2]
[382537456,1756659762802,480.0,0.0001725,2]
[382537457,1756659763702,1550.6,0.0001725,2]
[382537458,1756659763755,542.16,0.0001725,2]
[382537459,1756659764018,480.0,0.0001725,2]
[382537460,1756659764756,405.32,0.0001725,2]
[382537461,1756659764779,74.68,0.0001725,2]
[382537462,1756659771095,480.0,0.0001725,2]
[382537463,1756659771912,480.0,0.0001725,2]
[382537464,1756659772475,480.0,0.0001725,2]
[382537465,1756659773419,480.0,0.0001725,2]
[382537466,1756659774282,480.0,0.0001725,2]
[382537467,1756659774665,886.58,0.0001725,2]
[382537468,1756659776280,480.0,0.0001725,2]
[382537469,1756659776338,480.0,0.0001725,2]
[382537470,1756659778823,5753.43,0.00016369,2]
[382537471,1756659778845,10000.01,0.00016369,2]
[382537472,1756659778868,10000.01,0.00016369,2]
[382537473,1756659778891,10000.01,0.00016369,2]
[382537474,1756659778913,10000.01,0.00016369,2]
[382537475,1756659778935,10000.01,0.00016369,2]
[382537476,1756659778958,10000.01,0.00016369,2]
[382537477,1756659778980,10000.01,0.00016369,2]
[382537478,1756659779003,3374.7343622,0.00016369,2]
[382537479,1756659779793,559.69,0.0001725,2]
[382537480,1756659779826,1312.6,0.0001725,2]
[382537481,1756659780619,480.0,0.0001725,2]
[382537482,1756659780652,728.79,0.0001725,2]
[382537483,1756659782699,300.0,0.0001725,2]
[382537484,1756659784583,3244.1956378,0.0001725,2]
[382537485,1756659784608,1755.8043622,0.0001725,2]
[382537486,1756659785312,530.87,0.0001725,2]
[382537487,1756659785374,480.0,0.0001725,2]
[382537488,1756659785506,1290.14,0.0001725,2]
[382537489,1756659788757,480.0,0.0001725,2]
[382537490,1756659789704,480.0,0.0001725,2]
[382537491,1756659790322,480.0,0.0001725,2]
[382537492,1756659792044,783.11,0.0001725,2]
[382537493,1756659792508,3720.0856378,0.0001725,2]
[382537494,1756659792533,1279.9143622,0.0001725,2]
[382537495,1756659793430,480.0,0.0001725,2]
[382537496,1756659793898,480.0,0.0001725,2]
[382537497,1756659794141,609.59,0.0001725,2]
[382537498,1756659794266,480.0,0.0001725,2]
[382537499,1756659795396,1000.0,0.00016369,2]
[382537500,1756659795453,524.41,0.0001725,2]
[382537501,1756659795542,480.0,0.0001725,2]
[382537502,1756659795934,3560.92,0.0001725,2]
[382537503,1756659797830,480.0,0.0001725,2]
[382537504,1756659798523,480.0,0.0001725,2]
[382537505,1756659799102,567.31,0.0001725,2]
[382537506,1756659799897,483.96,0.0001725,2]
[382537507,1756659799935,649.29,0.0001725,2]
[382537508,1756659804368,587.42,0.0001725,2]
[382537509,1756659805591,719.99,0.0001725,2]
[382537510,1756659806351,480.0,0.0001725,2]
[382537511,1756659807010,481.78518685,0.0001725,2]
[382537512,1756659807045,591.31,0.0001725,2]
[382537513,1756659807573,605.0,0.0001725,2]
[382537514,1756659807823,4353.94481315,0.0001725,2]
[382537515,1756659807848,646.05518685,0.0001725,2]
[382537516,1756659808470,504.08,0.0001725,2]
[382537517,1756659810421,850.27,0.0001725,2]
[382537518,1756659812255,480.0,0.0001725,2]
[382537519,1756659814884,480.0,0.0001725,2]
[382537520,1756659815749,763.15,0.0001725,2]
[382537521,1756659815845,5000.0,0.0001725,2]
[382537522,1756659817311,1642.96,0.0001725,2]
[382537523,1756659817341,279.55,0.0001725,2]
[382537524,1756659817366,200.45,0.0001725,2]
[382537525,1756659818074,480.0,0.0001725,2]
[382537526,1756659818464,480.0,0.0001725,2]
[382537527,1756659819315,480.0,0.0001725,2]
[382537528,1756659820662,836.89,0.0001725,2]
[382537529,1756659820753,707.84,0.0001725,2]
[382537530,1756659822568,480.0,0.0001725,2]
[382537531,1756659822683,480.0,0.0001725,2]
[382537532,1756659825132,1038.66,0.0001725,2]
[382537533,1756659825995,480.0,0.0001725,2]
[382537534,1756659828360,5900.12,0.0001725,2]
[382537535,1756659828594,400.23583239,0.0001725,2]
[382537536,1756659828745,802.97,0.0001725,2]
[382537537,1756659829693,500.0,0.0001725,2]
[382537538,1756659829725,500.0,0.0001725,2]
[382537539,1756659829755,378.02416761,0.0001725,2]
[382537540,1756659829779,121.97583239,0.0001725,2]
[382537541,1756659829809,628.6438596,0.0001725,2]
[382537542,1756659829843,213.65579071,0.0001725,2]
[382537543,1756659829871,500.0,0.0001725,2]
[382537544,1756659829900,500.0,0.0001725,2]
[382537545,1756659829931,500.0,0.0001725,2]
[382537546,1756659829959,500.0,0.0001725,2]
[382537547,1756659829988,500.0,0.0001725,2]
[382537548,1756659830019,500.0,0.0001725,2]
[382537549,1756659830048,626.8925192,0.0001725,2]
[382537550,1756659830078,564.59,0.0001725,2]
[382537551,1756659830123,500.0,0.0001725,2]
[382537552,1756659830157,500.0,0.0001725,2]
[382537553,1756659830215,431.58953879,0.0001725,2]
[382537554,1756659830462,480.0,0.0001725,2]
[382537555,1756659831679,480.0,0.0001725,2]
[382537556,1756659831710,2452.66245931,0.0001725,2]
[382537557,1756659831733,2547.33754069,0.0001725,2]
[382537558,1756659833459,998.01,0.0001725,2]
[382537559,1756659833764,480.0,0.0001725,2]
[382537560,1756659835694,545.32,0.0001725,2]
[382537561,1756659835794,480.0,0.0001725,2]
[382537562,1756659836527,480.0,0.0001725,2]
[382537563,1756659838503,492.23,0.0001725,2]
[382537564,1756659838819,668.56,0.0001725,2]
[382537565,1756659839570,1032.21,0.0001725,2]
[382537566,1756659839638,2276.34245931,0.0001725,2]
[382537567,1756659839664,2723.65754069,0.0001725,2]
[382537568,1756659844075,300.0,0.0001725,2]
[382537569,1756659844376,480.0,0.0001725,2]
[382537570,1756659845863,480.0,0.0001725,2]
[382537571,1756659846271,835.98,0.0001725,2]
[382537572,1756659846659,2246.95,0.0001725,2]
[382537573,1756659847018,1214.78,0.0001725,2]
[382537574,1756659847091,500.0,0.0001725,2]
[382537575,1756659847132,500.0,0.0001725,2]
[382537576,1756659847165,500.0,0.0001725,2]
[382537577,1756659847199,218.64245931,0.0001725,2]
[382537578,1756659847229,207.67692923,0.0001725,2]
[382537579,1756659847264,480.0,0.0001725,2]
[382537580,1756659847304,500.0,0.0001725,2]
[382537581,1756659847338,500.0,0.0001725,2]
[382537582,1756659847379,373.1074808,0.0001725,2]
[382537583,1756659847427,500.0,0.0001725,2]
[382537584,1756659847465,480.0,0.0001725,2]
[382537585,1756659847505,500.0,0.0001725,2]
[382537586,1756659847542,500.0,0.0001725,2]
[382537587,1756659847590,500.0,0.0001725,2]
[382537588,1756659847638,500.0,0.0001725,2]
[382537589,1756659847689,650.0,0.0001725,2]
[382537590,1756659847781,865.0,0.0001725,2]
[382537591,1756659849109,480.0,0.0001725,2]
[382537592,1756659850091,1065.95,0.0001725,2]
[382537593,1756659853469,563.14,0.0001725,2]
[382537594,1756659854595,787.66,0.0001725,2]
[382537595,1756659855465,547.47558997,0.0001725,2]
[382537596,1756659855491,259.71441003,0.0001725,2]
[382537597,1756659857086,5000.0,0.0001725,2]
[382537598,1756659857284,596.97710962,0.0001725,2]
[382537599,1756659857323,500.0,0.0001725,2]
[382537600,1756659857358,500.0,0.0001725,2]
[382537601,1756659857390,500.0,0.0001725,2]
[382537602,1756659857421,500.0,0.0001725,2]
[382537603,1756659857455,500.0,0.0001725,2]
[382537604,1756659857487,500.0,0.0001725,2]
[382537605,1756659857525,500.0,0.0001725,2]
[382537606,1756659857555,500.0,0.0001725,2]
[382537607,1756659857587,143.31848035,0.0001725,2]
[382537608,1756659857612,356.68151965,0.0001725,2]
[382537609,1756659857649,500.0,0.0001725,2]
[382537610,1756659857682,527.85,0.0001725,2]
[382537611,1756659857888,500.0,0.0001725,2]
[382537612,1756659857921,500.0,0.0001725,2]
[382537613,1756659857963,500.0,0.0001725,2]
[382537614,1756659857995,500.0,0.0001725,2]
[382537615,1756659858027,500.0,0.0001725,2]
[382537616,1756659858064,500.0,0.0001725,2]
[382537617,1756659858093,500.0,0.0001725,2]
[382537618,1756659858124,460.95214774,0.0001725,2]
[382537619,1756659858155,500.0,0.0001725,2]
[382537620,1756659858184,500.0,0.0001725,2]
[382537621,1756659858219,500.0,0.0001725,2]
[382537622,1756659858269,500.0,0.0001725,2]
[382537623,1756659858306,500.0,0.0001725,2]
[382537624,1756659858347,500.0,0.0001725,2]
[382537625,1756659858380,500.0,0.0001725,2]
[382537626,1756659858413,500.0,0.0001725,2]
[382537627,1756659858675,480.0,0.0001725,2]
[382537628,1756659859104,1038.22,0.0001725,2]
[382537629,1756659859822,214.03548761,0.0001725,2]
[382537630,1756659860273,533.98,0.0001725,2]
[382537631,1756659862500,1048.2,0.0001725,2]
[382537632,1756659863251,511.02,0.0001725,2]
[382537633,1756659864107,937.14,0.0001725,2]
[382537634,1756659865036,5000.0,0.0001725,2]
[382537635,1756659870990,237.41451239,0.0001725,2]
[382537636,1756659871013,242.58548761,0.0001725,2]
[382537637,1756659871272,356.36837268,0.0001725,2]
[382537638,1756659872763,480.0,0.0001725,2]
[382537639,1756659873181,1815.119802,0.00016378,2]
[382537640,1756659874656,480.0,0.0001725,2]
[382537641,1756659874745,480.0,0.0001725,2]
[382537642,1756659874785,480.0,0.0001725,2]
[382537644,1756659876417,480.0,0.0001725,2]
[382537646,1756659878671,480.0,0.0001725,2]
[382537647,1756659878819,480.0,0.0001725,2]
[382537648,1756659879698,480.0,0.0001725,2]
[382537649,1756659879990,480.0,0.0001725,2]
[382537650,1756659880630,480.0,0.0001725,2]